Organisation Name,Organisation Code,Organisational Unit,Service Category Label,Procurement Category,Supplier Name,Supplier Other ID,Payment Date,Transaction Number,Amount (�),Purpose
Eden District Council,http://opendatacommunities.org/id/district-council/eden,Environmental Services,Housing Delivery,Professional fees,LAMBERT SMITH HAMPTON,LAM009,06/09/19,174535,592,INTERIM NO. 9
Eden District Council,http://opendatacommunities.org/id/district-council/eden,Technical Services Manager,Provision of Ameneties,Litter bins,GLASDON UK LTD,GLA003,06/09/19,174494,2421.6,STAINLESS STEEL STUBBER PLATES
Eden District Council,http://opendatacommunities.org/id/district-council/eden,Technical Services Manager,Technical Services Manager,Building works,ELECTRICITY NORTH WEST LTD,ELE005,06/09/19,174545,926,TRANSFER SOWERBY BARN SKELTON
Eden District Council,http://opendatacommunities.org/id/district-council/eden,Technical Services Manager,Technical Services Manager,Building works,ELECTRICITY NORTH WEST LTD,ELE005,06/09/19,174546,926,TRANSFER OPP SMITHY COTT JOHNBY
Eden District Council,http://opendatacommunities.org/id/district-council/eden,Technical Services Manager,Technical Services Manager,Building works,ELECTRICITY NORTH WEST LTD,ELE005,06/09/19,174547,926,TRANSFER YEW TREE HOUSE SKELTON
Eden District Council,http://opendatacommunities.org/id/district-council/eden,Technical Services Manager,Technical Services Manager,Building works,ELECTRICITY NORTH WEST LTD,ELE005,06/09/19,174548,926,TRANSFER BIRDS BISTRO PENRUDDOCK
Eden District Council,http://opendatacommunities.org/id/district-council/eden,Technical Services Manager,Technical Services Manager,Building works,ELECTRICITY NORTH WEST LTD,ELE005,06/09/19,174549,926,TRANSFER BECKSIDE PLUMPTON
Eden District Council,http://opendatacommunities.org/id/district-council/eden,Technical Services Manager,Technical Services Manager,Building works,ELECTRICITY NORTH WEST LTD,ELE005,06/09/19,174550,926,TRANSFER 2 COUNCIL HOUSES LOW HESKET
Eden District Council,http://opendatacommunities.org/id/district-council/eden,Technical Services Manager,Technical Services Manager,Building works,ELECTRICITY NORTH WEST LTD,ELE005,06/09/19,174551,926,TRANSFER JUNCT TO MOTHERBY PENRUDDOCK
Eden District Council,http://opendatacommunities.org/id/district-council/eden,Technical Services Manager,Technical Services Manager,Building works,ELECTRICITY NORTH WEST LTD,ELE005,06/09/19,174552,926,TRANSFER BLENCOW HOUSE BLENCOW
Eden District Council,http://opendatacommunities.org/id/district-council/eden,Technical Services Manager,Technical Services Manager,Building works,ELECTRICITY NORTH WEST LTD,ELE005,06/09/19,174553,926,TRANSFER FARRIERS WAY LOW HESKET
Eden District Council,http://opendatacommunities.org/id/district-council/eden,Technical Services Manager,Technical Services Manager,Building works,ELECTRICITY NORTH WEST LTD,ELE005,06/09/19,174580,926,LAMP TRAN HERB FARM IVEGILL
Eden District Council,http://opendatacommunities.org/id/district-council/eden,Technical Services Manager,Technical Services Manager,Building works,ELECTRICITY NORTH WEST LTD,ELE005,06/09/19,174581,926,LAMP TAN RONALDSWAY CALTHWAITE
Eden District Council,http://opendatacommunities.org/id/district-council/eden,Technical Services Manager,Technical Services Manager,Building works,ELECTRICITY NORTH WEST LTD,ELE005,06/09/19,174582,926,LAMP TRAN SMITHY COTTAGE LOW HESKETT
Eden District Council,http://opendatacommunities.org/id/district-council/eden,Technical Services Manager,Technical Services Manager,Building works,ELECTRICITY NORTH WEST LTD,ELE005,06/09/19,174583,926,LAMP TRAN NETHERDENE TROUTBECK
Eden District Council,http://opendatacommunities.org/id/district-council/eden,Technical Services Manager,Technical Services Manager,Building works,ELECTRICITY NORTH WEST LTD,ELE005,06/09/19,174584,926,LAMP TRAN SUNNYSIDE CATTERLEN
Eden District Council,http://opendatacommunities.org/id/district-council/eden,Technical Services Manager,Technical Services Manager,Building works,ELECTRICITY NORTH WEST LTD,ELE005,06/09/19,174585,926,LAMP TRAN ABRIACHAN CATTERLEN
Eden District Council,http://opendatacommunities.org/id/district-council/eden,Technical Services Manager,Technical Services Manager,Building works,ELECTRICITY NORTH WEST LTD,ELE005,06/09/19,174586,926,LAMP TRAN CROFT END LOW HESKET
Eden District Council,http://opendatacommunities.org/id/district-council/eden,Technical Services Manager,Technical Services Manager,Building works,ELECTRICITY NORTH WEST LTD,ELE005,06/09/19,174587,926,LAMP TRAN BERRIER RD GREYSTOKE
Eden District Council,http://opendatacommunities.org/id/district-council/eden,Technical Services Manager,Technical Services Manager,Building works,ELECTRICITY NORTH WEST LTD,ELE005,06/09/19,174588,926,LAMP TRAN ROMANLEA PLUMPTON
Eden District Council,http://opendatacommunities.org/id/district-council/eden,Technical Services Manager,Technical Services Manager,Building works,ELECTRICITY NORTH WEST LTD,ELE005,06/09/19,174589,926,LAMP TRAN ROMANE PLUMPTON
Eden District Council,http://opendatacommunities.org/id/district-council/eden,Technical Services Manager,Technical Services Manager,Building works,ELECTRICITY NORTH WEST LTD,ELE005,06/09/19,174590,926,LAMP TRAN BROVKLEY MOOR HOUSE
Eden District Council,http://opendatacommunities.org/id/district-council/eden,Technical Services Manager,Technical Services Manager,Building works,ELECTRICITY NORTH WEST LTD,ELE005,06/09/19,174591,926,LAMP TRAN CHURCH VIEW
Eden District Council,http://opendatacommunities.org/id/district-council/eden,Technical Services Manager,Technical Services Manager,Building works,ELECTRICITY NORTH WEST LTD,ELE005,06/09/19,174592,926,LAMP TRAN ESPLAND HOUSE NEWTON REIGNY
Eden District Council,http://opendatacommunities.org/id/district-council/eden,Technical Services Manager,Technical Services Manager,Building works,ELECTRICITY NORTH WEST LTD,ELE005,06/09/19,174593,926,LAMP TRAN FELL VIEW NEWTON REIGNY
Eden District Council,http://opendatacommunities.org/id/district-council/eden,Technical Services Manager,Technical Services Manager,Building works,ELECTRICITY NORTH WEST LTD,ELE005,06/09/19,174594,926,LAMP TRAN CROFT HOUSE NEWTON REIGNY
Eden District Council,http://opendatacommunities.org/id/district-council/eden,Financial Services Manager,Holding Accounts,Balance Sheet entry BS,GREENWICH LEISURE LTD,NCL001,06/09/19,174208,8687.85,LEISURE MANAGEMENT CONTRACT
Eden District Council,http://opendatacommunities.org/id/district-council/eden,Environmental Services,Pest Control,Pest Control,RENTOKIL INITIAL PEST CONTROL,REN009,06/09/19,174330,910.03,SERVICE PERIOD 01.09.19 TO 30.09.19 M/H
Eden District Council,http://opendatacommunities.org/id/district-council/eden,Legal Services Manager,Register of Electors,Postages,PRINT IMAGE FACILITIES LLP,PRI014,06/09/19,174358,8372.83,hef 2019 postage
Eden District Council,http://opendatacommunities.org/id/district-council/eden,Technical Services Manager,Public Conveniences,Water charges � metered,WATER PLUS,UNI008,06/09/19,174449,735.14,PCS KIRKBY STEPHEN
Eden District Council,http://opendatacommunities.org/id/district-council/eden,Revenue/Benefits Manager,Revenue & Benefits,Software � maintenance,CIVICA UK LTD,CIV002,06/09/19,174451,864.67,PARIS CVC & APACS SECURITY 19/20
Eden District Council,http://opendatacommunities.org/id/district-council/eden,Technical Services Manager,Recycling,Bank-Refurbishment,AMEY PLC,TFE001,06/09/19,174474,5500.76,STREET CLEANING
Eden District Council,http://opendatacommunities.org/id/district-council/eden,Technical Services Manager,Arts and Leisure,Grants and contributions,LIONS CLUB OF PENRITH,LIO003,06/09/19,174495,1000,EDC DONATION FOR TEA IN CASTLE PARK 14.0
Eden District Council,http://opendatacommunities.org/id/district-council/eden,Legal Services Manager,Legal Services,Agency Staff,VENN GROUP LIMITED,VEN003,06/09/19,174571,2096.15,TIME SHEET W/E11.08.19 LOCUM SOLICITOR
Eden District Council,http://opendatacommunities.org/id/district-council/eden,Legal Services Manager,Legal Services,Agency Staff,VENN GROUP LIMITED,VEN003,06/09/19,174574,2096.15,TIME SHEET W/E04.08.19 LOCUM SOLICITOR
Eden District Council,http://opendatacommunities.org/id/district-council/eden,Legal Services Manager,Legal Services,Agency Staff,VENN GROUP LIMITED,VEN003,06/09/19,174575,2096.15,TIME SHEET W/E 25.08.19 LOCUM SOLICITOR
Eden District Council,http://opendatacommunities.org/id/district-council/eden,Legal Services Manager,Legal Services,Agency Staff,VENN GROUP LIMITED,VEN003,06/09/19,174576,2096.15,TIME SHEET W/E 28.07.19 LOCUM SOLICITOR
Eden District Council,http://opendatacommunities.org/id/district-council/eden,Technical Services Manager,Closed Church Yards,GM INSPECTIONS & MAINTENANCE,AMEY PLC,TFE001,06/09/19,174577,34420.38,GROUNDS MAINTENANCE
Eden District Council,http://opendatacommunities.org/id/district-council/eden,Financial Services Manager,Holding Accounts,Balance Sheet entry BS,KIRKBY STEPHEN TOWN COUNCIL,KIR014,06/09/19,174579,75000,REPLACING TURF PITCH AND LIGHTING
Eden District Council,http://opendatacommunities.org/id/district-council/eden,Legal Services Manager,Legal Services,Agency Staff,VENN GROUP LIMITED,VEN003,06/09/19,174618,2096.15,TIME SHEET W/E 18.08.19 LOCUM SOLICITOR
Eden District Council,http://opendatacommunities.org/id/district-council/eden,Revenue/Benefits Manager,Revenue & Benefits,Charges to other LA's,SOUTH LAKELAND DISTRICT COUNCIL,SOU006,06/09/19,174622,5321.03,RECHARGE SHARED APPEALS OFFICER APR-JUL
Eden District Council,http://opendatacommunities.org/id/district-council/eden,Planning Services,Environmental Enhancement & Conservation,Professional fees,CAPITA PROPERTY & INFRASTRUCTURE LTD,CAP002,06/09/19,174628,2405,ARBORCULTURAL SERVICES AUG19
Eden District Council,http://opendatacommunities.org/id/district-council/eden,Transformation & Customers Head of,Central Expenses,Postages,NEOPOST LIMITED,NEO001,06/09/19,174630,2000,FRANKING REFILL
Eden District Council,http://opendatacommunities.org/id/district-council/eden,Technical Services Manager,Public Conveniences,Electricity,WATER PLUS,UNI008,06/09/19,174633,574.87,PCS BLUEBLL LANE
Eden District Council,http://opendatacommunities.org/id/district-council/eden,Technical Services Manager,Parks and Open Spaces,Ground Maintenance SOR & Dayworks,DAVID BUCHANAN CONTRACTOR,BUC006,13/09/19,174676,900,WALL REPAIRS PINFOLD
Eden District Council,http://opendatacommunities.org/id/district-council/eden,Human Resources Manager,Central Expenses,Advertising,REDACTIVE PUBLISHING LIMITED,RED006,13/09/19,174679,902,JOB LISTING & LOGO
Eden District Council,http://opendatacommunities.org/id/district-council/eden,Legal Services Manager,Licensing,Development,INSTITUTE OF LICENSING (EVENTS) LTD,INS020,13/09/19,174750,561,prof licence pract quals
Eden District Council,http://opendatacommunities.org/id/district-council/eden,Financial Services Manager,Corporate Costs,Professional fees,CIRRUS PURCHASING LTD,CIR004,13/09/19,174441,1500,PROCUREMENT SUPPORT (PART 1)
Eden District Council,http://opendatacommunities.org/id/district-council/eden,Technical Services Manager,Footway Lighting,Building works,APTUS UTILITIES LTD,APT001,13/09/19,174544,38374.02,FOOTWAY LIGHTING CAPITAL WORKS
Eden District Council,http://opendatacommunities.org/id/district-council/eden,Technical Services Manager,Eden Leisure Centre & Appleby Swimming P,Equipment � purchase,WILKINSON JAMES PARTNERSHIP LIMITED,WIL023,13/09/19,174624,1260,LEISURE CENTRE - LIGHTING SCHEME
Eden District Council,http://opendatacommunities.org/id/district-council/eden,Technical Services Manager,Footway Lighting,Building works,ELECTRICITY NORTH WEST LTD,ELE005,13/09/19,174728,926,LAMP TRAN GARDEN HOUSE CULGAITH
Eden District Council,http://opendatacommunities.org/id/district-council/eden,Technical Services Manager,Footway Lighting,Building works,ELECTRICITY NORTH WEST LTD,ELE005,13/09/19,174729,926,LAMP TRAN ORCHARD LODGE CULGAITH
Eden District Council,http://opendatacommunities.org/id/district-council/eden,Technical Services Manager,Footway Lighting,Building works,ELECTRICITY NORTH WEST LTD,ELE005,13/09/19,174730,926,LAMP TRAN THE OLD SMITHY CULGAITH
Eden District Council,http://opendatacommunities.org/id/district-council/eden,Technical Services Manager,Footway Lighting,Building works,ELECTRICITY NORTH WEST LTD,ELE005,13/09/19,174731,926,LAMP TRAN OLD VICARAGE LITTLE SALKELD
Eden District Council,http://opendatacommunities.org/id/district-council/eden,Technical Services Manager,Footway Lighting,Building works,ELECTRICITY NORTH WEST LTD,ELE005,13/09/19,174732,926,LAMP TRAN 2 LONG MEG COTT LITTLE SALKELD
Eden District Council,http://opendatacommunities.org/id/district-council/eden,Technical Services Manager,Footway Lighting,Building works,ELECTRICITY NORTH WEST LTD,ELE005,13/09/19,174733,926,LAMP TRAN EDENHALL HOTEL
Eden District Council,http://opendatacommunities.org/id/district-council/eden,Technical Services Manager,Footway Lighting,Building works,ELECTRICITY NORTH WEST LTD,ELE005,13/09/19,174734,926,LAMP TRAN ROSE COTTAGE HUNSONBY
Eden District Council,http://opendatacommunities.org/id/district-council/eden,Environmental Services,1996 Mandatory Renovation Grants,Capital grants,TOP NOTCH CONTRACTORS LTD,TOP003,13/09/19,174366,8083,FIN PAYMENT GRANT REF 180051
Eden District Council,http://opendatacommunities.org/id/district-council/eden,Environmental Services,1996 Mandatory Renovation Grants,Capital grants,DOLPHIN MOBILITY YORKSHIRE & CUMBRIA LTD,DOL001,13/09/19,174367,4095,FIN PAYMENT GRANT REF 180073
Eden District Council,http://opendatacommunities.org/id/district-council/eden,Environmental Services,1996 Mandatory Renovation Grants,Capital grants,C W COX & SONS (KENDAL)  LTD,COX001,13/09/19,174368,4870,INTERIM PAYMENT GRANT REF 180073
Eden District Council,http://opendatacommunities.org/id/district-council/eden,Environmental Services,Other Environmental Health,Professional fees,UNITED UTILITIES WATER PLC,UNI024,13/09/19,174464,1279.3,WT/FS ANAYSIS JULY 19
Eden District Council,http://opendatacommunities.org/id/district-council/eden,Legal Services Manager,Land Management,Professional fees,WALTON GOODLAND LTD,WAL008,13/09/19,174645,1260,FEASIBILITY STUDY PENRITH POLICE STATION
Eden District Council,http://opendatacommunities.org/id/district-council/eden,Environmental Services,Community Wardens,Dog Contract Collection,AMEY PLC,TFE001,13/09/19,174682,534.39,STRAY DOG COLLECTION/KENELLING CHARGES
Eden District Council,http://opendatacommunities.org/id/district-council/eden,Environmental Services,Community Wardens,Dog Contract O.O.H retainer,AMEY PLC,TFE001,13/09/19,174684,938.83,KENELLING AUG 19
Eden District Council,http://opendatacommunities.org/id/district-council/eden,Transformation & Customers Head of,Corporate Services,Agency Staff,PAYSTREAM MY MAX LTD,PAY005,13/09/19,174702,1500,SERVICES PROVIDED 25.08.19
Eden District Council,http://opendatacommunities.org/id/district-council/eden,Transformation & Customers Head of,Corporate Services,Agency Staff,PAYSTREAM MY MAX LTD,PAY005,13/09/19,174703,1500,SERVICES PROVIDED 29.08.19
Eden District Council,http://opendatacommunities.org/id/district-council/eden,Environmental Services,1996 Mandatory Renovation Grants,Capital grants,IMPACT HOUSING ASSOCIATION,IMP001,13/09/19,174704,825.75,AT HOME IN EDEN
Eden District Council,http://opendatacommunities.org/id/district-council/eden,Planning Policy Manager,Local Plans & Policy,Professional fees,JBA CONSULTING LTD,JBA001,13/09/19,174714,3406,DRAFT SFRA
Eden District Council,http://opendatacommunities.org/id/district-council/eden,Environmental Services,Homelessness,Accommodation,REDACTED INFORMATION,LEE016,13/09/19,174715,1000,RENT  - FINAL INVOICE
Eden District Council,http://opendatacommunities.org/id/district-council/eden,Information Technology Manager,Information Technology,IT Contracts & Maintenance,IT PROFESSIONAL SERVICES LTD,ITP001,13/09/19,174744,2480,V7000 CONTROLLER . ONSITEW RESPONSE ANNU
Eden District Council,http://opendatacommunities.org/id/district-council/eden,Commercial Services Manager,Penrith TIC Trading Account,Unique payments ****,WANNASEE LTD,WAN001,13/09/19,174752,3856.67,ticket sales wanasee festival
Eden District Council,http://opendatacommunities.org/id/district-council/eden,Technical Services Manager,Eden Leisure Centre & Appleby Swimming P,Building Maintenance - Leisure,THOMAS ARMSTRONG (CONSTRUCTION) LTD,THO001,20/09/19,174809,1953,BOILER FILTER
Eden District Council,http://opendatacommunities.org/id/district-council/eden,Technical Services Manager,Eden Leisure Centre & Appleby Swimming P,Building Maintenance - Leisure,A DAVIDSON LTD,DAV038,20/09/19,174828,5620,WORK AT LEISURE CENTRE
Eden District Council,http://opendatacommunities.org/id/district-council/eden,Financial Services Manager,Financial Services,Professional fees,RUPERT DEWHIRST AND ASSOCIATES LTD,RUP001,20/09/19,174842,787.5,PRODUCE 2 UPDATED FORECASTS
Eden District Council,http://opendatacommunities.org/id/district-council/eden,Information Technology Manager,Information Technology,Computer equipment,DELL CORPORTATION LTD,DEL005,20/09/19,174855,810,OPTIPLEX 3060MICRO FORM FACTOR BTX
Eden District Council,http://opendatacommunities.org/id/district-council/eden,Technical Services Manager,Recycling,Bank-Refurbishment,IAN CANNON LTD,CAN004,20/09/19,174690,1150,PRESSURE WASH BRING SITES
Eden District Council,http://opendatacommunities.org/id/district-council/eden,Planning Services,Planning Services,Furniture � office,HEATONS OFFICE SOLUTIONS LTD,LAK004,20/09/19,174724,1774.68,CHIARS/STATIONERY/PAPER/ OFFICE
Eden District Council,http://opendatacommunities.org/id/district-council/eden,Technical Services Manager,Footway Lighting,Building works,ELECTRICITY NORTH WEST LTD,ELE005,20/09/19,174735,926,lamp tran dene house little salkeld
Eden District Council,http://opendatacommunities.org/id/district-council/eden,Technical Services Manager,Footway Lighting,Building works,ELECTRICITY NORTH WEST LTD,ELE005,20/09/19,174736,926,lamp tran birch croft
Eden District Council,http://opendatacommunities.org/id/district-council/eden,Technical Services Manager,Footway Lighting,Building works,ELECTRICITY NORTH WEST LTD,ELE005,20/09/19,174737,926,lamp tran wesley cottage gamblesby
Eden District Council,http://opendatacommunities.org/id/district-council/eden,Technical Services Manager,Footway Lighting,Building works,ELECTRICITY NORTH WEST LTD,ELE005,20/09/19,174738,926,lamp tran o/s wesleyan chapel
Eden District Council,http://opendatacommunities.org/id/district-council/eden,Technical Services Manager,Footway Lighting,Building works,ELECTRICITY NORTH WEST LTD,ELE005,20/09/19,174739,926,lamp tran hazelgarth gamblesby
Eden District Council,http://opendatacommunities.org/id/district-council/eden,Human Resources Manager,Central Expenses,Advertising,SOLACE IN BUSINESS,SOL002,20/09/19,174471,6384.81,FINAL 30% AGREED FEE-EXEC RECRUITMENT
Eden District Council,http://opendatacommunities.org/id/district-council/eden,Legal Services Manager,Land Management,Professional fees,WALTON GOODLAND LTD,WAL008,20/09/19,174538,750,POLICE STATION APPRAISAL
Eden District Council,http://opendatacommunities.org/id/district-council/eden,Transformation & Customers Head of,Corporate Services,Agency Staff,INTRO PR . SOCIAL MEDIA . CONTENT,INT014,20/09/19,174675,2800,PR
Eden District Council,http://opendatacommunities.org/id/district-council/eden,Revenue/Benefits Manager,Revenue & Benefits,Postages,ROYAL MAIL NW,ROY001,20/09/19,174688,1243.43,POST CHARGES 07.08.19 - 27.08.19
Eden District Council,http://opendatacommunities.org/id/district-council/eden,Technical Services Manager,Recycling,VRC Payments,PENRITH TOWN COUNCIL,PEN080,20/09/19,174695,700,SECOND RECHARGE - MORRISONS
Eden District Council,http://opendatacommunities.org/id/district-council/eden,Environmental Services,1996 Mandatory Renovation Grants,Capital grants,B & H CONSTRUCTION,BHC001,20/09/19,174753,7000,interim payment grant ref 180071
Eden District Council,http://opendatacommunities.org/id/district-council/eden,Commercial Services Manager,Crime & Disorder Reduction Partnership,Grants and contributions,GATESTRAVEL,GAT004,20/09/19,174760,985.79,HOTELS AND RAIL
Eden District Council,http://opendatacommunities.org/id/district-council/eden,Revenue/Benefits Manager,Revenue & Benefits,Other charges for services,CHESHIRE EAST BOROUGH COUNCIL,CHE013,20/09/19,174791,1500,HOUSING FRAMEWORK WITH ALLPAY
Eden District Council,http://opendatacommunities.org/id/district-council/eden,Environmental Services,Housing Delivery,Professional fees,H&H REEDS PRINTERS LTD,REE001,20/09/19,174800,597,eden affordable warth posters
Eden District Council,http://opendatacommunities.org/id/district-council/eden,Financial Services Manager,Corporate Costs,Audit fee,GRANT THORNTON UK LLP,THO026,20/09/19,174801,8074,external audit 19-2020 1 of 4
Eden District Council,http://opendatacommunities.org/id/district-council/eden,Financial Services Manager,Corporate Costs,Audit fee,NPOWER LTD,NPO001,20/09/19,174802,4895.81,mansion house
Eden District Council,http://opendatacommunities.org/id/district-council/eden,Transformation & Customers Head of,Corporate Services,Agency Staff,PAYSTREAM MY MAX LTD,PAY005,20/09/19,174804,1500,SERVICES PROVIDED 08.09.19
Eden District Council,http://opendatacommunities.org/id/district-council/eden,Dir of People & Place,Director of People & Place,Agency Staff,GATENBYSANDERSON LTD,GAT010,20/09/19,174817,13200,SERVICES PROVIDED W/C 26.08.19
Eden District Council,http://opendatacommunities.org/id/district-council/eden,Technical Services Manager,Recycling,Bank-Refurbishment,AMEY PLC,TFE001,20/09/19,174833,2145.16,SC74
Eden District Council,http://opendatacommunities.org/id/district-council/eden,Human Resources Manager,Central Expenses,Advertising,SOLACE IN BUSINESS,SOL002,20/09/19,174834,-4125,CREDIT FOR AGREED FEE
Eden District Council,http://opendatacommunities.org/id/district-council/eden,Technical Services Manager,Refuse Collection,Refuse Contract Dayworks,AMEY PLC,TFE001,20/09/19,174836,1520.63,REFUSE COLLECTION
Eden District Council,http://opendatacommunities.org/id/district-council/eden,Environmental Services,Community Wardens,Dog Contract O.O.H retainer,AMEY PLC,TFE001,20/09/19,174838,938.83,STRAY DOG SEPT 2019
Eden District Council,http://opendatacommunities.org/id/district-council/eden,Technical Services Manager,Land Charges,Professional fees,CUMBRIA COUNTY COUNCIL,CCC002,20/09/19,174847,1561,EDEN SEARCHES  JULY 19
Eden District Council,http://opendatacommunities.org/id/district-council/eden,Technical Services Manager,Administrative Buildings,Electricity,NPOWER LTD,NPO001,20/09/19,174852,750.93,MANSION HOUSE
Eden District Council,http://opendatacommunities.org/id/district-council/eden,Technical Services Manager,Administrative Buildings,Electricity,NPOWER LTD,NPO001,20/09/19,174853,1329.22,TOWN HALL
Eden District Council,http://opendatacommunities.org/id/district-council/eden,Environmental Services,Pest Control,Pest Control,RENTOKIL INITIAL PEST CONTROL,REN009,20/09/19,174858,910.03,PESTS MISC OCT 19
Eden District Council,http://opendatacommunities.org/id/district-council/eden,Technical Services Manager,Eden Leisure Centre & Appleby Swimming P,NCL Ad-hoc Sports Pitches,MARK HARROD LTD,MAR040,13/09/19,174964,664,Goal Posts
Eden District Council,http://opendatacommunities.org/id/district-council/eden,Transformation & Customers Head of,Central Expenses,Postages,NEOPOST,NEO004,13/09/19,174969,995,Franking Top Up
Eden District Council,http://opendatacommunities.org/id/district-council/eden,Commercial Services Manager,Economic Development and Promotion,Professional fees,HOSPITALITY ASSOCIATES LTD,HOS004,19/09/19,174837,6250,FEASIBILITY STUDY - 50% OF AGREED AMOUNT
Eden District Council,http://opendatacommunities.org/id/district-council/eden,Planning Policy Manager,Local Plans & Policy,Child Care Voucher Scheme,BUSY BEES CHILDCARE VOUCHERS,BUS004,19/09/19,175043,889,CHILDCARE VOUCHER DDR 19/09/19
Eden District Council,http://opendatacommunities.org/id/district-council/eden,Technical Services Manager,Public Conveniences,Building Maintenance,AMEY PLC,TFE001,27/09/19,173674,1173.29,APPLEBY PCS FAULT ON HAND DRIERS
Eden District Council,http://opendatacommunities.org/id/district-council/eden,Environmental Services,Appleby Fair,Abnormal maintenance,AMEY PLC,TFE001,27/09/19,173682,664.82,28.5.19 FIT BOARDS RAILINGS APPLEBY FAIR
Eden District Council,http://opendatacommunities.org/id/district-council/eden,Technical Services Manager,Administrative Buildings,Planned Maintenance,ORRION ASBESTOS LTD,ORR001,27/09/19,173846,1320,asbestos surveys
Eden District Council,http://opendatacommunities.org/id/district-council/eden,Technical Services Manager,Footway Lighting,Building works,ELECTRICITY NORTH WEST LTD,ELE005,27/09/19,174740,926,lamp tran wythburn high heskett
Eden District Council,http://opendatacommunities.org/id/district-council/eden,Financial Services Manager,Financial Services,Equipment � maintenance,TWOFOLD LIMITED,TWO002,27/09/19,174470,1101.56,CONTRACT RENEWAL 29.9.19-28.9.20
Eden District Council,http://opendatacommunities.org/id/district-council/eden,Legal Services Manager,Register of Electors,Postages,ROYAL MAIL NW,ROY001,27/09/19,174627,1729.18,RESPONSE PLUS SERVICE
Eden District Council,http://opendatacommunities.org/id/district-council/eden,Legal Services Manager,Elections,Printing and stationary,PRINT IMAGE NETWORK LTD,PRI011,27/09/19,174644,782,POLL CARDS
Eden District Council,http://opendatacommunities.org/id/district-council/eden,Technical Services Manager,Central Expenses,Other charges for services,ADVANCED FIRE SAFETY & TRAINING LTD,ASE001,27/09/19,174720,1210,FIRE RISK ASSESMENTS
Eden District Council,http://opendatacommunities.org/id/district-council/eden,Financial Services Manager,Insurance,Insurance,JARDINE LLOYD THOMPSON UK LTD,JAR003,27/09/19,174821,1282.6,PERSONAL ACCIDENT & TRAVEL
Eden District Council,http://opendatacommunities.org/id/district-council/eden,Commercial Services Manager,Community Development & Engagement,Community engagement development,KIRKBY STEPHEN TOWN COUNCIL,KIR014,27/09/19,174824,1200,TOUR OF BRITAIN GRANT 1ST PAYMENT
Eden District Council,http://opendatacommunities.org/id/district-council/eden,Financial Services Manager,Treasury Management,Valuation fees,WALTON GOODLAND LTD,WAL008,27/09/19,174839,1100,PROVISION OF REPORT / VAL- TULIP GARDENS
Eden District Council,http://opendatacommunities.org/id/district-council/eden,Revenue/Benefits Manager,Commercial Services,Contribution by EDC,PENRITH B I D COMPANY LTD,PEN085,27/09/19,174845,80000,PENRITH BID LEVY
Eden District Council,http://opendatacommunities.org/id/district-council/eden,Commercial Services Manager,Repairs & Renewals Fund,Building works,HOWE PROJECTS LTD,HOW014,27/09/19,174857,73593.87,APPLEBY SWINNING POOL WORKS 2ND INVOICE
Eden District Council,http://opendatacommunities.org/id/district-council/eden,Transformation & Customers Head of,Corporate Services,Agency Staff,PAYSTREAM MY MAX LTD,PAY005,27/09/19,174862,1500,SERVICES PROVIDED W/E 15.09.19
Eden District Council,http://opendatacommunities.org/id/district-council/eden,Technical Services Manager,Recycling,Em Wks Storage,AMEY PLC,TFE001,27/09/19,174940,532.55,M-M&EW90/2019
Eden District Council,http://opendatacommunities.org/id/district-council/eden,Environmental Services,Appleby Fair,Street Cleaning Contract,AMEY PLC,TFE001,27/09/19,174941,18472.7,M-SC90
Eden District Council,http://opendatacommunities.org/id/district-council/eden,Technical Services Manager,Refuse Collection,Contract refuse collection,AMEY PLC,TFE001,27/09/19,174942,72605.89,M-RC90
Eden District Council,http://opendatacommunities.org/id/district-council/eden,Commercial Services Manager,Community Development & Engagement,Grants and contributions,KIRKBY STEPHEN TOWN COUNCIL,KIR014,27/09/19,174944,4540,SERVICE LEVEL AGREEMENT 19/20
Eden District Council,http://opendatacommunities.org/id/district-council/eden,Revenue/Benefits Manager,Suspense Account,Balance Sheet entry BS,HEYLO HOUSING SECURED BOND LTD,HEY002,27/09/19,174993,2285,council tax refund
Eden District Council,http://opendatacommunities.org/id/district-council/eden,Financial Services Manager,Holding Accounts,Balance Sheet entry BS,APPLEBY TOWN COUNCIL,APP001,27/09/19,175003,512.34,A BEQUEST OF FLOWERS AND POTS FOR SUMMER
Eden District Council,http://opendatacommunities.org/id/district-council/eden,Financial Services Manager,Holding Accounts,Balance Sheet entry BS,PATTERDALE PARISH COUNCIL,PAT002,27/09/19,175005,25000,1ST PAYMENTSIGNATURE PROJECT
Eden District Council,http://opendatacommunities.org/id/district-council/eden,Commercial Services Manager,Museum,Electricity,NPOWER LTD,NPO001,27/09/19,175014,909.16,PENRITH TIC
Eden District Council,http://opendatacommunities.org/id/district-council/eden,Technical Services Manager,Recycling,Garden Waste Skips,CUMBRIA WASTE RECYCLING LTD,CUM022,27/09/19,175020,3269,SKIPS
Eden District Council,http://opendatacommunities.org/id/district-council/eden,Technical Services Manager,Recycling,Recycling  - Bring Sites,CUMBRIA WASTE RECYCLING LTD,CUM022,27/09/19,175021,7612.72,BRING SITE
Eden District Council,http://opendatacommunities.org/id/district-council/eden,Technical Services Manager,Closed Church Yards,GM INSPECTIONS & MAINTENANCE,AMEY PLC,TFE001,27/09/19,175022,34420.38,GROUNDS MAINTENANCE
Eden District Council,http://opendatacommunities.org/id/district-council/eden,Technical Services Manager,Recycling,Recycling - Bag & Box,CUMBRIA WASTE RECYCLING LTD,CUM022,27/09/19,175026,21759.98,GREEN BOX
Eden District Council,http://opendatacommunities.org/id/district-council/eden,Technical Services Manager,Recycling,Recycling - Garden Waste,CUMBRIA WASTE RECYCLING LTD,CUM022,27/09/19,175027,18307.84,GARDEN WASTE
Eden District Council,http://opendatacommunities.org/id/district-council/eden,Technical Services Manager,Recycling,Recycling - Bag & Box,CUMBRIA WASTE RECYCLING LTD,CUM022,27/09/19,175034,13952.66,GREEN BOX
Eden District Council,http://opendatacommunities.org/id/district-council/eden,Technical Services Manager,Recycling,material price fluctuations,CUMBRIA WASTE RECYCLING LTD,CUM022,27/09/19,175035,4492.34,KERBSIDE BAG & BOX
Eden District Council,http://opendatacommunities.org/id/district-council/eden,Technical Services Manager,Recycling,Recycling - Garden Waste,CUMBRIA WASTE RECYCLING LTD,CUM022,27/09/19,175036,24182.37,GARDEN WASTE
Eden District Council,http://opendatacommunities.org/id/district-council/eden,Commercial Services Manager,Community Development & Engagement,Community Fund,PENRITH & NORTH LAKES CROQUET CLUB,PEN064,27/09/19,175038,625,FINAL 25% PAYMNET FROM EDEN COMM FUND
Eden District Council,http://opendatacommunities.org/id/district-council/eden,Commercial Services Manager,Community Development & Engagement,Community Fund,PENRITH CRICKET SPORTS AND SOCIAL CLUB,PEN023,27/09/19,175039,1308.25,FINAL 25% PAYMNET FROM EDEN COMM FUND
Eden District Council,http://opendatacommunities.org/id/district-council/eden,Commercial Services Manager,Community Development & Engagement,Community Fund,CUMBRIA WILDLIFE TRUST,CUM077,27/09/19,175040,2000,FINAL PAYMENT EDEN COMM FUND
Eden District Council,http://opendatacommunities.org/id/district-council/eden,Legal Services Manager,Legal Services,Professional fees,KINGS CHAMBERS,KIN015,26/09/19,175006,500,PROFESSIONAL FEES SELF BUILD PLOTS
Eden District Council,http://opendatacommunities.org/id/district-council/eden,Legal Services Manager,Elections,Postages,PRINT IMAGE FACILITIES LLP,PRI014,26/09/19,175041,797.94,POLL CARD POSTAGE
Eden District Council,http://opendatacommunities.org/id/district-council/eden,Revenue/Benefits Manager,Revenue & Benefits,Printing and stationary,OPAL ENVELOPES LIMITED,OPA001,26/09/19,175133,1230,ENVELOPES
Eden District Council,http://opendatacommunities.org/id/district-council/eden,Information Technology Manager,Repairs & Renewals Fund,Equipment � purchase,PROBRAND LIMITED,PRO008,26/09/19,175140,4050,V330
Eden District Council,http://opendatacommunities.org/id/district-council/eden,Technical Services Manager,Eden Leisure Centre & Appleby Swimming P,Building Maintenance - Leisure,GREENFIELDS HEAT & POWER LTD,GRE035,30/09/19,175163,2665.46,SUPPY/INSTALL PUSH BUTTON SHOWERS
Eden District Council,http://opendatacommunities.org/id/district-council/eden,Information Technology Manager,Information Technology,Computer equipment,PROBRAND LIMITED,PRO008,30/09/19,175164,587.45,KEYBOARD JABRA EVOLVE STEREO USB SCROLL
Eden District Council,http://opendatacommunities.org/id/district-council/eden,Chief Executive's,Chief Executive,Professional fees,PENRITH METHODIST CHURCH,PEN001,30/09/19,175147,801.85,SANDGATE ROOM 18-20.09.19
Eden District Council,http://opendatacommunities.org/id/district-council/eden,Legal Services Manager,Legal Services,Professional fees,SEFTON COUNCIL,SEF001,30/09/19,174536,500,NORTH WEST CONSORTIUM 19/20
Eden District Council,http://opendatacommunities.org/id/district-council/eden,Environmental Services,Housing Standards,Agency Staff,OYSTER PARTNERSHIP,OYS001,30/09/19,174816,515.3,W/C 26.08.19 SERVICES PROVIDED
Eden District Council,http://opendatacommunities.org/id/district-council/eden,Environmental Services,1996 Mandatory Renovation Grants,Capital grants,C W COX & SONS (KENDAL)  LTD,COX001,30/09/19,174866,3750,FINAL PAYMENT GRANT REF 190010
Eden District Council,http://opendatacommunities.org/id/district-council/eden,Technical Services Manager,Eden Leisure Centre & Appleby Swimming P, Adhoc Works,DYNAMIC JOINERY LTD,DYN004,30/09/19,175002,1109,REPLACE BOARDS WITH BUFFALO BOARDS
Eden District Council,http://opendatacommunities.org/id/district-council/eden,Technical Services Manager,Cemeteries,ADHOC WORKS FOR BURIALS,AMEY PLC,TFE001,30/09/19,175045,5450.98,SEE ATTACHED CERT
Eden District Council,http://opendatacommunities.org/id/district-council/eden,Technical Services Manager,Cemeteries,ADHOC WORKS FOR BURIALS,AMEY PLC,TFE001,30/09/19,175046,3252.43,SEE ATTACHED CERT
Eden District Council,http://opendatacommunities.org/id/district-council/eden,Transformation & Customers Head of,Corporate Services,Agency Staff,PAYSTREAM MY MAX LTD,PAY005,30/09/19,175047,1500,SERVICES PROVIDED W/E22.09.19
Eden District Council,http://opendatacommunities.org/id/district-council/eden,Commercial Services Manager,Community Development & Engagement,Community Fund,THE STUDIO MORLAND,STU007,30/09/19,175050,1122.75,75% EDEN COMMUNITY FUND
Eden District Council,http://opendatacommunities.org/id/district-council/eden,Commercial Services Manager,Community Development & Engagement,Community Fund,LONG MARTON VILLAGE HALL,LON007,30/09/19,175053,3750,75% EDEN COMMUNITY FUND
Eden District Council,http://opendatacommunities.org/id/district-council/eden,Commercial Services Manager,Community Development & Engagement,Community Fund,PARKIN MEMORIAL HALL,PAR009,30/09/19,175056,4617.08,75% PAYMENT EDEN COMM FUND
Eden District Council,http://opendatacommunities.org/id/district-council/eden,Technical Services Manager,Recycling,material price fluctuations,CUMBRIA WASTE RECYCLING LTD,CUM022,30/09/19,175111,5677.2,BS-F-61-19/20
Eden District Council,http://opendatacommunities.org/id/district-council/eden,Information Technology Manager,Information Technology,Printers Contract,Konica Minolta Business Solutions UK Limited,KON003,30/09/19,175123,2504.18,PRINTING
Eden District Council,http://opendatacommunities.org/id/district-council/eden,Legal Services Manager,Elections,Printing and stationary,PRINT IMAGE NETWORK LTD,PRI011,30/09/19,175131,1122,POSTAL VOTES
Eden District Council,http://opendatacommunities.org/id/district-council/eden,Legal Services Manager,Elections,Printing and stationary,PRINT IMAGE NETWORK LTD,PRI011,30/09/19,175132,758,BALLOT BOOKS
Eden District Council,http://opendatacommunities.org/id/district-council/eden,Legal Services Manager,Register of Electors,Postages,ROYAL MAIL NW,ROY001,30/09/19,175137,1483.57,REPONSE PLUS
Eden District Council,http://opendatacommunities.org/id/district-council/eden,Legal Services Manager,Land Management,Planned Maintenance,CBEN PARTNERSHIP LLP,CBE001,30/09/19,175138,843.2,"WORK/REPORT/,ILEAGE 18.09.19 CARBON PLAN"
Eden District Council,http://opendatacommunities.org/id/district-council/eden,Technical Services Manager,Community Development & Engagement,Gas,ALSTON TOWN HALL TRUSTEES,ALS003,30/09/19,175149,600,ENERGY RECHARGE JAN-MAR18 GAS/ELECTRIC
Eden District Council,http://opendatacommunities.org/id/district-council/eden,Transformation & Customers Head of,Corporate Services,Agency Staff,PAYSTREAM MY MAX LTD,PAY005,30/09/19,175151,1500,SERVICES PROVIDED W/E 29.09.19
Eden District Council,http://opendatacommunities.org/id/district-council/eden,Financial Services Manager,Corporate Costs,Bank charges,Financial Services Manager,BMS001,10/09/19,198400,1008.5,BARCLAYS MERCHANT SERVICES
Eden District Council,http://opendatacommunities.org/id/district-council/eden,Financial Services Manager,Corporate Costs,Bank charges,Financial Services Manager,BMS001,10/09/19,198401,629.33,BARCLAYS MERCHANT SERVICES
Eden District Council,http://opendatacommunities.org/id/district-council/eden,Financial Services Manager,Corporate Costs,Bank charges,Financial Services Manager,BMS001,24/09/19,198645,2290.87,BARCLAYS MERCHANT SERVICES
